bitfinex/quotes_ETHUSD_20240729
["timestamp","ask_amount","ask_price","bid_price","bid_amount"]
[1722266696091,0.05268785,3303.5,3301.6,2.2632]
[1722266696246,3.0273,3303.3,3302.0,3.02846]
[1722266696450,3.0273,3303.3,3302.2,2.3284]
[1722266696811,7.01074,3303.9,3302.3,0.06055045]
[1722266696812,3.02676,3303.9,3302.3,0.06055045]
[1722266697102,1.94791712,3304.6,3302.8,3.02765]
[1722266697103,3.02658,3304.1,3302.8,3.02765]
[1722266697265,3.02658,3304.1,3303.0,2.4007]
[1722266697473,6.05298,3304.2,3303.1,0.06053555]
[1722266697704,3.02655,3304.1,3303.2,0.06053578]
[1722266697850,3.02655,3304.1,3303.0,2.4007]
[1722266697851,3.02675,3303.9,3303.0,2.4007]
[1722266698051,3.0265,3304.2,3303.1,0.06053578]
[1722266698288,3.02644,3304.3,3303.1,0.06053578]
[1722266698461,3.0265,3304.2,3303.0,2.4007]
[1722266698686,3.02669,3304.0,3303.0,2.4007]
[1722266698852,3.02645,3304.2,3303.0,5.42824]
[1722266699054,3.02628,3304.4,3303.2,3.02736]
[1722266699264,0.375,3304.6,3303.5,3.02708]
[1722266699490,3.40114,3304.6,3303.5,0.06052356]
[1722266699701,0.375,3304.6,3303.5,3.08759356]
[1722266700370,0.375,3304.6,3303.4,2.4096]
[1722266700706,3.02638,3304.3,3303.4,2.4096]
[1722266700939,0.375,3304.6,3303.4,2.4096]
[1722266700940,3.02689,3303.8,3303.4,2.4096]
[1722266701215,0.375,3304.6,3303.4,2.4096]
[1722266701216,3.02669,3304.0,3303.4,2.4096]
[1722266701409,0.375,3304.6,3303.4,2.4096]
[1722266701410,3.02676,3303.9,3303.4,2.4096]
[1722266701764,3.02682,3303.8,3303.4,2.4096]
[1722266702081,3.02737,3303.2,3302.7,2.4959]
[1722266702263,3.02673,3303.9,3302.7,2.4959]
[1722266702467,3.55,3304.4,3302.8,0.06054709]
[1722266702468,3.02711,3303.5,3302.8,0.06054709]
[1722266702809,7.01042,3304.3,3302.7,2.4959]
[1722266703112,7.01042,3304.3,3300.7,3.02963]
[1722266703113,3.02814,3302.4,3301.4,2.4354]
[1722266703410,3.02756,3303.0,3301.6,3.02882]
[1722266703612,3.02783,3302.7,3301.7,2.3867]
[1722266703793,3.02771,3302.9,3301.7,2.3867]
[1722266703994,3.0,3303.4,3301.9,3.02848]
[1722266704192,3.02728,3303.3,3302.0,3.0889533]
[1722266704408,3.02659,3304.1,3302.1,2.4337]
[1722266704563,3.02733,3303.3,3302.2,0.06054628]
[1722266704770,3.02733,3303.3,3302.1,2.4337]
[1722266704771,3.55,3304.0,3302.1,2.4337]
[1722266705037,3.984,3304.3,3302.2,0.06054633]
[1722266705038,3.02724,3303.4,3302.2,0.06054633]
[1722266705325,3.02703,3303.6,3302.3,3.08872637]
[1722266705326,3.0271,3303.5,3302.3,3.08872637]
[1722266705669,3.0,3304.2,3302.4,5.55672639]
[1722266706085,3.0,3304.2,3302.4,2.4681]
[1722266706086,3.02749,3303.1,3302.4,2.4681]
[1722266706242,3.02746,3303.1,3302.4,2.4681]
[1722266706450,3.02773,3302.8,3302.4,2.4681]
[1722266706596,3.02787,3302.7,3302.4,2.4681]
[1722266706791,3.02773,3302.8,3302.4,2.4681]
[1722266707009,3.02792,3302.6,3302.4,2.4681]
[1722266707235,3.02771,3302.9,3302.4,2.4681]
[1722266707592,3.028,3302.5,3302.4,2.4681]
[1722266707794,3.02835,3302.2,3301.7,2.4053]
[1722266708112,3.02861,3301.9,3301.7,2.4053]
[1722266708310,6.0573,3301.8,3301.7,2.4053]
[1722266708732,3.02899,3301.5,3300.2,5.46086]
[1722266708912,3.02841,3302.1,3300.5,2.4308]
[1722266709096,3.02881,3301.7,3300.5,2.4308]
[1722266709305,3.0292,3301.2,3300.5,2.4308]
[1722266709501,3.984,3301.9,3299.8,2.3713]
[1722266709747,3.02966,3300.7,3299.8,2.3713]
[1722266709957,3.02975,3300.6,3299.8,2.60843]
[1722266710254,3.02981,3300.6,3299.8,2.3713]
[1722266710431,3.02984,3300.5,3299.8,2.3713]
[1722266710626,3.03022,3300.1,3299.8,2.3713]
[1722266710955,3.0,3301.3,3299.8,2.3713]
[1722266710956,3.02955,3300.9,3299.9,0.06060343]
[1722266711157,6.984,3301.3,3299.8,2.3713]
[1722266711158,3.0297,3300.7,3299.8,2.3713]
[1722266711369,3.02926,3301.2,3299.9,0.06060258]
[1722266711652,3.02927,3301.2,3300.0,2.2723]
[1722266711812,3.02929,3301.1,3300.0,2.2723]
[1722266712014,3.02886,3301.6,3300.0,2.2723]
[1722266712211,3.55,3301.5,3300.0,2.2723]
[1722266712415,3.02902,3301.4,3300.0,2.2723]
[1722266712655,3.02946,3301.0,3300.0,2.2723]
[1722266713054,3.02973,3300.7,3300.0,2.2723]
[1722266713574,3.02949,3300.9,3300.0,2.2723]
[1722266713760,3.02932,3301.1,3300.0,2.2723]
[1722266713913,3.0299,3300.5,3300.0,2.2723]
[1722266714267,3.02976,3300.6,3300.0,2.2723]
[1722266714428,3.02964,3300.8,3300.0,2.2723]
[1722266714429,3.02984,3300.5,3300.0,2.2723]
[1722266714619,3.02993,3300.4,3300.0,2.2723]
[1722266715127,3.03004,3300.3,3300.0,2.2723]
[1722266715346,3.0,3301.4,3300.0,2.2723]
[1722266715347,3.02984,3300.5,3300.0,2.2723]
[1722266716065,3.03002,3300.3,3300.0,2.2723]
[1722266716258,3.03021,3300.1,3300.0,2.2723]
[1722266716414,6.06042,3300.1,3300.0,2.2723]
[1722266716619,3.0,3301.0,3299.2,2.2789]
[1722266716620,3.03057,3299.8,3299.2,2.2789]
[1722266716837,3.03036,3300.0,3299.2,2.2789]
[1722266717163,3.0301,3300.3,3299.2,2.50884301]
[1722266717380,3.03019,3300.2,3299.2,2.50884301]
[1722266717529,3.0301,3300.3,3299.2,2.50884301]
[1722266717530,3.03021,3300.1,3299.2,2.50884301]
[1722266717739,3.0303,3300.1,3299.2,2.50884301]
[1722266717990,3.03033,3300.0,3299.2,1.6013727]
[1722266718282,3.0299,3300.5,3299.2,1.37142969]
[1722266718437,3.02944,3301.0,3299.2,1.37142969]
[1722266718438,3.0296,3300.8,3299.2,1.37142969]
[1722266718641,3.02966,3300.7,3299.6,3.03066]
[1722266718833,3.02966,3300.7,3299.7,0.06059751]
[1722266719063,3.0299,3300.5,3299.1,3.0516301]
[1722266719274,3.0299,3300.5,3299.2,0.30516301]
[1722266719496,3.0295,3300.9,3299.7,3.03051]
[1722266719636,3.02957,3300.8,3299.8,0.06059645]
[1722266719833,3.02939,3301.0,3299.8,0.06059645]
[1722266720136,3.02957,3300.8,3299.8,0.06059645]
[1722266720379,3.02938,3301.0,3299.8,3.4001881]
[1722266720537,3.02959,3300.8,3299.8,0.3697081]
[1722266720882,3.02966,3300.7,3299.8,0.3697081]
[1722266721173,3.02945,3301.0,3299.9,2.4436]
[1722266721174,3.03003,3300.3,3299.9,2.4436]
[1722266721380,3.02986,3300.5,3299.9,2.4436]
[1722266721580,3.02969,3300.7,3299.9,2.4436]
[1722266721581,3.02994,3300.4,3299.9,2.4436]
[1722266721752,3.02975,3300.6,3300.0,0.06059838]
[1722266722282,3.02972,3300.7,3300.0,0.06059795]
[1722266722587,3.02948,3300.9,3300.0,0.06059795]
[1722266722899,3.0,3301.1,3300.0,0.06059795]
[1722266722900,3.02911,3301.3,3300.0,3.64429575]
[1722266723035,3.0,3301.5,3300.0,3.09082795]
[1722266723239,6.02898,3301.5,3300.0,3.09082795]
[1722266723537,0.0606909,3302.0,3299.9,5.47396]
[1722266723538,3.02935,3301.1,3299.9,5.47396]
[1722266723783,3.02919,3301.3,3299.9,5.47396]
[1722266723784,3.02918,3301.3,3300.0,3.577646]
[1722266724081,3.02918,3301.3,3300.1,3.0302]
[1722266724241,3.02935,3301.1,3300.0,0.547396]
[1722266724581,3.02918,3301.3,3300.0,3.577686]
[1722266724788,3.02935,3301.1,3300.0,0.547396]
[1722266725026,3.02902,3301.4,3300.1,0.0605859]
[1722266725171,3.02916,3301.3,3299.9,2.4436]
[1722266725380,3.0,3301.6,3300.4,2.3059]
[1722266725692,3.02859,3301.9,3300.6,3.02974]
[1722266725892,3.0931909,3302.0,3300.7,0.36961031]
[1722266726218,3.04053,3302.0,3300.9,5.33536]
[1722266726429,3.04053,3302.0,3301.0,3.08988383]
[1722266726430,0.012,3302.0,3301.0,3.08988383]
[1722266726576,0.012,3302.0,3301.1,3.02928]
[1722266726773,0.012,3302.0,3301.2,0.0605726]
[1722266727014,0.012,3302.0,3301.2,3.0897126]
[1722266727317,0.012,3302.0,3301.3,3.08962026]
[1722266727618,0.012,3302.0,3301.5,2.3112]
[1722266727773,0.012,3302.0,3301.6,0.06056645]
[1722266727978,0.012,3302.0,3301.5,2.3112]
[1722266728188,0.012,3302.0,3301.6,0.06056703]
[1722266728652,0.012,3302.0,3301.5,2.3112]
[1722266729331,3.02855,3301.9,3301.5,2.3112]
[1722266729613,0.012,3302.0,3300.9,2.3691]
[1722266729614,3.02899,3301.5,3300.9,2.3691]
[1722266730429,3.02855,3301.9,3301.0,0.05204548]
[1722266730582,3.02855,3301.9,3300.9,2.3691]
[1722266730901,3.02867,3301.8,3300.9,2.3691]
[1722266731091,3.02855,3301.9,3300.9,2.3691]
[1722266731419,0.012,3302.0,3300.9,2.908973]
[1722266731632,3.02882,3301.7,3300.9,2.3691]
[1722266731827,3.012,3302.0,3300.9,2.3691]
[1722266732126,3.02938,3301.0,3300.9,2.3691]
[1722266732439,3.02938,3301.0,3299.8,0.303052]
[1722266732440,3.02938,3301.0,3299.9,5.33893]
[1722266732716,3.02924,3301.2,3300.0,0.5641982]
[1722266732717,3.02954,3300.9,3300.0,0.5641982]
[1722266733026,3.02935,3301.1,3299.9,2.3086]
[1722266733176,3.02964,3300.8,3299.9,2.3086]
[1722266733380,0.55,3301.6,3299.9,5.33892]
[1722266733381,3.02941,3301.0,3299.9,5.33892]
[1722266733583,3.0292,3301.2,3300.0,3.03021]
[1722266733797,3.02936,3301.1,3299.9,6.2062092]
[1722266734042,3.02943,3301.0,3299.9,6.2061492]
[1722266734420,4.57738087,3301.7,3300.0,0.65092012]
[1722266734745,3.02926,3301.2,3300.1,3.03015]
[1722266734897,6.05817,3301.4,3300.2,3.0301]
[1722266735095,3.02857,3301.9,3300.8,3.02954]
[1722266735345,3.02865,3301.8,3301.0,2.2842]
[1722266735708,0.012,3302.0,3301.1,0.0605758]
[1722266735908,3.02856,3301.9,3301.1,0.0605758]
[1722266736543,0.012,3302.0,3301.1,0.0605758]
[1722266736750,0.012,3302.0,3301.2,0.53741458]
[1722266736919,0.012,3302.0,3301.3,0.06056902]
[1722266737109,0.012,3302.0,3301.2,0.53741458]
[1722266737314,0.012,3302.0,3301.0,2.2842]
[1722266737847,3.02895,3301.5,3301.0,2.2842]
[1722266738024,3.02929,3301.1,3300.1,2.2786]
[1722266738232,3.02934,3301.1,3300.1,2.2786]
[1722266738452,3.02934,3301.1,3300.2,0.22786]
[1722266738616,3.02954,3300.9,3300.1,2.2786]
[1722266738816,3.02898,3301.5,3300.1,2.2786]
[1722266738817,3.0294,3301.0,3300.1,2.2786]
[1722266739135,3.02899,3301.5,3300.1,2.2786]
[1722266739542,3.02945,3301.0,3300.1,2.2786]
[1722266739748,3.02899,3301.5,3300.1,2.2786]
[1722266739749,3.02931,3301.1,3300.1,2.2786]
[1722266740185,3.02955,3300.9,3300.1,2.2786]
[1722266740320,3.02899,3301.5,3300.1,2.2786]
[1722266740321,3.03011,3300.3,3300.1,2.2786]
[1722266740521,3.02948,3300.9,3300.1,2.2786]
[1722266740723,3.03021,3300.1,3299.5,2.2786]
[1722266740937,3.03011,3300.3,3299.5,2.2786]
[1722266740938,3.03015,3300.2,3299.5,2.2786]
[1722266741261,3.03035,3300.0,3299.5,2.2786]
[1722266741458,3.03055,3299.8,3299.5,2.2786]
[1722266741833,3.03015,3300.2,3299.5,2.2786]
[1722266742270,3.03049,3299.8,3299.5,2.2786]
[1722266742454,3.03049,3299.8,3299.1,0.0205301]
[1722266742455,3.03067,3299.6,3299.1,0.0205301]
[1722266742652,3.03049,3299.8,3299.1,0.0205301]
[1722266743062,3.03075,3299.6,3299.1,0.0205301]
[1722266743224,3.03051,3299.8,3299.1,0.0205301]
[1722266743653,3.03034,3300.0,3299.1,0.0205301]
[1722266743654,3.03059,3299.7,3299.1,0.0205301]
[1722266743826,3.03027,3300.1,3299.1,0.0205301]
[1722266744026,8.20655011,3300.7,3299.1,0.25053311]
[1722266744027,3.02997,3300.4,3299.1,0.25053311]
[1722266744261,3.0,3300.7,3299.1,0.25053311]
[1722266744262,3.02978,3300.6,3299.3,3.03094]
[1722266744525,3.629,3301.3,3299.1,3.28164311]
[1722266744526,1.57755011,3301.6,3299.9,2.4425]
[1722266744875,0.01,3301.0,3299.9,2.4425]
[1722266745025,3.02971,3300.7,3299.9,2.4425]
[1722266745622,3.02951,3300.9,3299.9,2.4425]
[1722266745623,3.02957,3300.8,3299.9,2.4425]
[1722266745875,0.01,3301.0,3300.0,0.06059523]
[1722266746022,0.01,3301.0,3300.0,0.25030952]
[1722266746224,3.02951,3300.9,3299.9,2.4425]
[1722266746544,3.02964,3300.8,3299.9,2.4425]
[1722266747078,6.06885,3301.0,3299.9,2.4425]
[1722266747223,6.06885,3301.0,3299.9,5.47288]
[1722266747224,3.03939,3301.0,3299.9,5.47288]
[1722266747423,3.03939,3301.0,3300.3,3.03]
[1722266747424,0.01,3301.0,3300.3,3.03]
[1722266747626,0.01,3301.0,3300.4,0.0605876]
[1722266748076,0.01,3301.0,3300.0,3.577528]
[1722266748243,0.01,3301.0,3300.3,3.02997]
[1722266748441,0.01,3301.0,3300.5,2.472]
[1722266748646,0.01,3301.0,3300.7,3.02965]
[1722266748858,0.01,3301.0,3300.8,0.06057722]
[1722266749632,0.01,3301.0,3300.5,2.472]
[1722266749830,3.02954,3300.9,3300.5,2.472]
[1722266750033,0.01,3301.0,3300.5,2.472]
[1722266750262,3.03939,3301.0,3300.5,2.472]
[1722266750469,0.01,3301.0,3300.5,2.472]
[1722266750879,3.02972,3300.7,3300.5,2.472]
[1722266751083,3.02972,3300.7,3299.5,5.50009]
[1722266751376,3.02972,3300.7,3299.5,3.072479]
[1722266751377,3.02985,3300.5,3299.5,3.072479]
[1722266751739,1.58438533,3300.8,3299.5,3.072479]
[1722266751976,0.89273868,3300.7,3299.6,3.70156475]
[1722266752184,4.62382533,3301.0,3299.9,3.03039]
[1722266752335,0.01,3301.0,3300.0,3.0908807]
[1722266752533,0.01,3301.0,3300.3,2.4794]
[1722266752776,0.01,3301.0,3300.4,0.06058628]
[1722266753371,0.01,3301.0,3300.3,2.4794]
[1722266753555,0.89250729,3300.9,3300.3,2.4794]
[1722266753734,0.01,3301.0,3300.3,2.4794]
[1722266754236,5.50698863,3300.9,3300.3,2.4794]
[1722266754477,2.47743863,3300.8,3300.3,2.4794]
[1722266754663,0.89258054,3300.7,3300.3,2.4794]
[1722266755046,2.47743863,3300.7,3300.3,2.4794]
[1722266755254,0.89258054,3300.6,3300.3,2.4794]
[1722266755983,4.61447809,3300.8,3300.3,2.4794]
[1722266756191,0.89255634,3300.7,3300.3,2.4794]
[1722266756394,0.01,3301.0,3299.6,2.4004]
[1722266756395,3.02993,3300.4,3299.6,2.4004]
[1722266756539,3.03013,3300.2,3299.6,2.4004]
[1722266757234,3.0304,3299.9,3299.6,2.4004]
[1722266757681,3.03041,3299.9,3299.6,2.4004]
[1722266757977,4.61647576,3300.1,3299.6,2.4004]
[1722266758179,3.92303615,3300.0,3299.6,2.4004]
[1722266758472,4.61647576,3300.1,3299.6,2.4004]
[1722266758680,3.03033,3300.0,3299.6,2.4004]
[1722266758904,3.03033,3300.0,3299.1,0.0205301]
[1722266758905,1.58625576,3300.0,3299.1,0.0205301]
[1722266759097,3.03103,3299.2,3299.1,0.0205301]
[1722266759595,6.61206,3299.2,3299.1,0.0205301]
[1722266760087,3.03103,3299.2,3299.1,0.0205301]
[1722266760297,5.25244516,3299.4,3299.1,0.0205301]
[1722266760590,4.6164256,3299.3,3299.1,0.0205301]
[1722266760750,3.03103,3299.2,3299.1,0.0205301]
[1722266760954,4.61648851,3299.2,3299.1,0.0205301]
[1722266761499,3.031,3299.3,3299.1,0.0205301]
[1722266761656,4.61595468,3299.3,3299.1,0.0205301]
[1722266761993,3.03103,3299.2,3299.1,0.0205301]
[1722266762339,1.90343312,3299.4,3299.1,0.0205301]
[1722266762552,6.06206,3299.2,3299.1,0.0205301]
[1722266762886,14.31202784,3299.2,3299.1,0.0205301]
[1722266763252,14.31211083,3299.2,3299.1,0.0205301]
[1722266763509,14.86086352,3299.2,3299.1,0.0205301]
[1722266763826,15.67412,3299.2,3299.1,0.0205301]
[1722266763974,9.61206,3299.2,3299.1,0.0205301]
[1722266764170,11.27980902,3299.2,3299.1,0.0085301]
[1722266764373,3.03103,3299.2,3299.1,0.0085301]
[1722266765094,1.89988908,3299.3,3299.1,0.0085301]
[1722266765318,1.58301273,3299.2,3299.1,0.0085301]
[1722266765595,5.65133033,3300.1,3299.1,0.0085301]
[1722266765596,1.58289712,3299.3,3299.1,0.0085301]
[1722266765809,1.58289712,3299.5,3299.1,2.4461301]
[1722266765956,1.89947654,3299.8,3299.2,0.30522559]
[1722266765957,1.58289712,3299.8,3299.2,0.30522559]
[1722266766152,1.58289712,3300.1,3299.2,0.24461301]
[1722266766395,1.58289712,3300.5,3299.5,3.0307]
[1722266766600,1.58289712,3300.5,3299.6,3.39432809]
[1722266766847,3.02931,3301.1,3299.8,3.03041]
[1722266766848,1.58289712,3300.7,3299.8,3.03041]
[1722266767147,1.58289712,3300.6,3299.7,2.4376]
[1722266767312,1.58289712,3300.6,3299.8,0.577133]
[1722266767513,4.61264712,3300.6,3299.8,0.577133]
[1722266767741,1.58289712,3300.5,3299.7,2.4376]
[1722266768035,4.61288712,3300.4,3299.7,2.4376]
[1722266768197,1.58289712,3300.4,3299.7,2.4376]
[1722266768397,1.58192368,3300.4,3299.7,2.4376]
[1722266768705,8.43206,3299.2,3299.1,0.0085301]
[1722266768902,8.43206,3299.2,3298.4,0.00181085]
[1722266768903,9.09504,3298.5,3298.4,0.00181085]
[1722266769133,12.67672,3298.5,3298.4,0.00181085]
[1722266769304,16.27404,3298.5,3298.4,0.00181085]
[1722266769631,18.48837535,3298.5,3298.4,0.00181085]
[1722266770540,9.61336,3298.5,3298.4,0.00181085]
[1722266770842,6.03168,3298.5,3298.4,0.00181085]
[1722266771139,9.61336,3298.5,3298.4,0.00181085]
[1722266771496,14.22419586,3298.5,3298.4,0.00181085]
[1722266771704,12.64504,3298.5,3298.4,0.00181085]
[1722266772097,11.19257144,3298.5,3298.4,0.00181085]
[1722266772297,9.61336,3298.5,3298.4,0.00181085]
[1722266772550,12.64504,3298.5,3298.4,0.00181085]
[1722266772756,9.61336,3298.5,3298.4,0.00181085]
[1722266772933,12.64504,3298.5,3298.4,0.00181085]
[1722266773103,9.61336,3298.5,3298.4,0.00181085]
[1722266773299,6.03168,3298.5,3298.4,0.00181085]
[1722266773514,9.06336,3298.5,3298.4,0.00181085]
[1722266774404,6.03168,3298.5,3298.4,0.00181085]
[1722266775201,3.03141,3298.8,3298.4,0.00181085]
[1722266775402,1.57823735,3299.1,3298.4,0.00181085]
[1722266775403,3.03117,3299.1,3298.4,0.00181085]
[1722266775639,4.60917735,3299.4,3298.4,0.00181085]
[1722266775961,1.89388482,3299.7,3298.4,0.00181085]
[1722266775962,1.57823735,3299.7,3298.4,0.00181085]
[1722266776101,3.03093,3299.4,3298.4,0.00181085]
[1722266776298,3.03055,3299.8,3298.6,3.03151]
[1722266776532,3.03055,3299.8,3298.7,0.06061645]
[1722266776727,3.03055,3299.8,3298.7,3.09210645]
[1722266776947,7.31,3300.1,3298.4,0.30518694]
[1722266777151,3.03122,3299.0,3298.4,0.00181085]
[1722266777322,3.03088,3299.4,3298.4,0.00181085]
[1722266777506,3.03101,3299.3,3298.4,0.00181085]
[1722266778015,3.03105,3299.2,3298.4,0.00181085]
[1722266778214,1.58926023,3300.0,3298.4,0.00181085]
[1722266778215,3.03091,3299.4,3298.4,0.00181085]
[1722266778547,3.031,3299.3,3298.4,0.00181085]
[1722266778753,3.03077,3299.5,3298.4,0.00181085]
[1722266778980,0.012,3300.0,3298.6,3.03158]
[1722266779125,3.03045,3299.9,3298.8,2.4355]
[1722266779329,0.012,3300.0,3298.9,0.06061412]
[1722266779756,0.012,3300.0,3299.1,3.03112]
[1722266780072,0.012,3300.0,3299.2,3.39474024]
[1722266780280,0.012,3300.0,3299.3,3.09153647]
[1722266780427,0.05265505,3301.1,3299.4,3.03078]
[1722266780428,3.02981,3300.6,3299.4,3.03078]
[1722266780776,3.02968,3300.7,3299.5,3.09134303]
[1722266780938,3.02968,3300.7,3299.6,2.3426]
[1722266781121,0.05265505,3301.1,3299.6,2.3426]
[1722266781122,3.08197505,3301.1,3299.7,0.60399338]
[1722266781492,3.02953,3300.9,3299.8,0.06059738]
[1722266781894,3.02958,3300.8,3299.8,0.06059738]
[1722266782053,3.02953,3300.9,3299.8,0.06059738]
[1722266782054,3.0295,3300.9,3299.8,0.06059738]
[1722266782405,3.02957,3300.8,3299.8,0.06059738]
[1722266782714,3.08197505,3301.1,3299.8,0.35525655]
[1722266782864,3.02936,3301.1,3299.9,3.03033]
[1722266783069,3.02936,3301.1,3299.8,0.35525655]
[1722266783070,3.02928,3301.2,3300.0,0.06059076]
[1722266783252,3.02957,3300.8,3300.0,0.06059076]
[1722266783602,3.02958,3300.8,3300.0,0.06059076]
[1722266783749,3.02966,3300.7,3299.6,5.37321]
[1722266783951,3.02948,3300.9,3299.7,3.567831]
[1722266784191,3.03942,3301.0,3299.8,3.03047]
[1722266784380,3.03942,3301.0,3299.7,0.537321]
[1722266784581,0.01,3301.0,3299.9,3.03036]
[1722266784784,0.01,3301.0,3300.0,0.06059081]
[1722266785102,0.01,3301.0,3300.0,3.09086081]
[1722266785281,0.01,3301.0,3300.1,0.30908608]
[1722266785746,0.01,3301.0,3300.0,3.0303]
[1722266786521,0.01,3301.0,3300.1,3.0302]
[1722266786680,0.01,3301.0,3300.0,3.03024]
[1722266787052,0.01,3301.0,3299.9,3.03037]
[1722266787256,0.01,3301.0,3300.1,3.09079703]
[1722266787493,0.01,3301.0,3300.1,0.06058703]
[1722266787865,3.03938,3301.0,3300.1,0.06058703]
[1722266788112,3.02966,3300.7,3299.6,2.3426]
[1722266788322,3.02953,3300.9,3299.7,3.26483]
[1722266788598,3.02953,3300.9,3299.7,0.23426]
[1722266788914,3.02953,3300.9,3299.6,2.3426]
[1722266788915,3.03032,3300.0,3299.6,2.3426]
[1722266789112,3.0299,3300.5,3299.6,2.3426]
[1722266789312,3.03003,3300.3,3299.7,0.06060861]
[1722266789493,3.0,3300.9,3299.7,0.06060861]
[1722266789691,3.0,3300.9,3299.6,2.3426]
[1722266789692,3.03008,3300.3,3299.6,2.3426]
[1722266789897,3.0,3300.9,3299.6,2.3426]
[1722266789898,3.03,3300.4,3299.6,2.3426]
[1722266790191,3.03021,3300.2,3299.6,2.3426]
[1722266790408,3.03035,3300.0,3299.6,2.3426]
[1722266790907,3.03021,3300.2,3299.6,2.3426]
[1722266790908,3.03016,3300.2,3299.6,2.3426]
[1722266791414,3.03021,3300.1,3299.6,2.3426]
[1722266791565,3.03016,3300.2,3299.6,2.3426]
[1722266791566,3.03035,3300.0,3299.6,2.3426]
[1722266792165,3.03015,3300.2,3299.6,2.3426]
[1722266792413,2.12832647,3300.9,3299.6,2.3426]
[1722266792714,3.03052,3299.8,3299.6,2.3426]
[1722266792878,3.03033,3300.0,3299.6,2.3426]
[1722266793769,1.57866856,3300.7,3299.7,0.06060868]
[1722266793770,3.02986,3300.5,3299.7,0.06060868]
[1722266794133,3.03008,3300.3,3299.6,2.3426]
[1722266794280,3.02994,3300.4,3299.7,0.06060119]
[1722266794485,3.02973,3300.7,3299.7,0.06060119]
[1722266794717,3.0,3300.9,3299.6,2.3426]
[1722266795034,1.57866856,3300.8,3299.6,2.3426]
[1722266795196,3.02967,3300.7,3299.6,2.3426]
[1722266795395,3.03017,3300.2,3299.6,2.3426]
[1722266795597,3.03033,3300.0,3299.6,2.3426]
[1722266796309,3.03012,3300.2,3299.6,2.3426]
[1722266796652,3.03009,3300.3,3299.6,2.3426]
[1722266796998,3.0297,3300.7,3299.7,0.06060147]
[1722266797198,3.02993,3300.4,3299.7,0.06060147]
[1722266797516,3.03003,3300.3,3299.6,2.3426]
[1722266797710,3.03013,3300.2,3299.6,2.3426]
[1722266797912,4.6092292,3300.6,3299.7,0.06060561]
[1722266798109,3.02961,3300.8,3299.8,0.06059751]
[1722266798110,3.02967,3300.7,3299.8,0.06059751]
[1722266798523,6.02949,3300.9,3299.6,5.37326]
[1722266798524,7.6089192,3300.9,3299.6,5.37326]
[1722266798753,3.02949,3300.9,3299.9,0.06059752]
[1722266799800,0.01,3301.0,3300.0,0.06059095]
[1722266800239,0.01,3301.0,3300.3,3.03001]
[1722266800440,0.01,3301.0,3300.4,0.0605834]
[1722266800652,0.01,3301.0,3300.4,0.67264674]
[1722266801658,0.01,3301.0,3300.4,3.70257674]
[1722266801867,0.01,3301.0,3300.4,0.67264674]
[1722266802366,0.01,3301.0,3300.6,3.02975]
[1722266802529,0.01,3301.0,3300.7,3.0901465]
[1722266802737,0.01,3301.0,3300.8,0.06057721]
[1722266803268,0.01,3301.0,3300.1,2.7183]
[1722266803269,0.01,3301.0,3300.1,5.74845]
[1722266803449,0.01,3301.0,3300.1,2.4144]
[1722266803619,3.02953,3300.9,3300.1,2.4144]
[1722266803814,3.02974,3300.7,3300.1,2.4144]
[1722266804015,0.01,3301.0,3300.1,2.4144]
[1722266804016,3.02963,3300.8,3300.1,2.4144]
[1722266804220,0.01,3301.0,3300.1,2.4144]
[1722266804651,0.01,3301.0,3300.2,0.06058578]
[1722266804822,0.01,3301.0,3300.3,0.06058565]
[1722266805027,0.01,3301.0,3300.3,3.09055565]
[1722266805249,0.01,3301.0,3300.1,5.44459]
[1722266805564,0.01,3301.0,3300.2,3.03006]
[1722266805860,0.01,3301.0,3300.3,3.03001]
[1722266806060,0.01,3301.0,3300.2,3.03006]
[1722266806263,0.01,3301.0,3300.4,3.09046177]
[1722266806465,0.01,3301.0,3300.8,3.02956]
[1722266806662,0.01,3301.0,3300.9,0.06057281]
[1722266807367,0.01,3301.0,3300.5,5.4793]
[1722266807768,0.01,3301.0,3300.5,2.4495]
[1722266808265,0.01,3301.0,3300.6,3.02974]
[1722266808827,0.01,3301.0,3300.6,3.02968]
[1722266809027,0.01,3301.0,3300.8,3.02956]
[1722266809341,0.01,3301.0,3300.5,2.7488946]
[1722266809342,0.01,3301.0,3300.9,6.11951333]
[1722266809566,0.05267071,3302.8,3301.0,0.3039]
[1722266809736,0.05267071,3302.8,3301.2,5.82759]
[1722266809925,3.0273,3303.3,3301.9,5.52304]
[1722266810169,3.0273,3303.3,3302.0,0.06055401]
[1722266810330,3.02711,3303.5,3302.2,3.02822]
[1722266810525,3.02721,3303.4,3302.3,3.08872685]
[1722266810750,3.02734,3303.3,3302.3,0.30887268]
[1722266810976,3.02738,3303.2,3301.9,2.4945]
[1722266811140,0.375,3303.9,3302.0,0.06054716]
[1722266811343,3.02701,3303.6,3302.2,3.02827]
[1722266811530,3.02711,3303.5,3302.0,3.02838]
[1722266811728,3.02686,3303.8,3301.9,2.4945]
[1722266812077,3.02754,3303.1,3301.9,2.4945]
[1722266812374,3.02736,3303.2,3302.0,3.02839]
[1722266812671,3.02718,3303.4,3301.9,2.4945]
[1722266812672,3.02747,3303.1,3301.9,2.4945]
[1722266812889,3.02753,3303.1,3301.9,2.4945]
[1722266813078,3.02731,3303.3,3302.0,3.580726]
[1722266813392,3.02737,3303.2,3302.0,0.552306]
[1722266813534,3.02747,3303.1,3302.0,0.552306]
[1722266813887,0.375,3303.9,3302.1,0.06054918]
[1722266814174,3.02709,3303.5,3302.3,3.02818]
[1722266814381,3.02694,3303.7,3302.4,3.330908]